Cogmind - Beta 16.1 @@@ ROGUE MODE // 2026.04.19 @ 16:12:32 Player: beans Result: Destroyed by P-60 Hacker with Shock Rifle Performance ------------- Evolutions (4) 2000 Regions Visited (8) 1600 Robots Destroyed (57) 285 Value Destroyed (1889) 1889 Prototype IDs (33) 660 Alien Tech Used (0) 0 Bonus (706) 706 TOTAL SCORE: 7140 Bonus ------- Registered with UFD 300 Met Optimus in HQ 500 Friendly Fire -94 Cogmind --------- Core Integrity 0/850 Matter 143/300 Energy 100/100 System Corruption 14% Temperature Cool (0) Movement Core (50) Location -6/Factory Parts ------- > --- POWER (2) -------- (None) > --- PROPULSION (4) --- (None) > --- UTILITY (4) ------ Improved Heat Sink Spectral Analyzer > --- WEAPON (5) ------- (None) > --- INVENTORY (5) ---- (None) Peak State ------------ > --- POWER ------------ (None) > --- PROPULSION ------- (None) > --- UTILITY ---------- Improved Heat Sink Spectral Analyzer > --- WEAPON ----------- 1B-0RG's Assimilator > --- INVENTORY -------- (None) [Rating: 77] Favorites ----------- Power Ion Engine Engine Ion Engine Power Core Micro Nuclear Core Reactor Cold Fusion Reactor Propulsion Carbon-fiber Leg Treads Medium Treads Leg Carbon-fiber Leg Wheel Compact Wheel Flight Unit Flight Unit Utility Experimental Terrain Scan Processor Device Improved Heat Sink Storage Medium Storage Unit Processor Experimental Terrain Scan Processor Hackware Improved Hacking Suite Protection Power Shielding Weapon Heavy Machine Gun Energy Gun Heavy EM Shotgun Energy Cannon Nova Cannon Ballistic Gun Heavy Machine Gun Ballistic Cannon Bore Cannon Launcher Rocket Launcher Special Weapon Flamer Special Melee Weapon 1B-0RG's Assimilator Build | -11 -10 -10 -10 -8 -8 -6 -6 -6 ------- Run | Yrd Mat Min Sub Rec Scr Fac Was Fac Slots Evolved 8 | . . . . . . 8 . . Power 1 | . . . . . . 1 . . Propulsion 2 | . . . . . . 2 . . Utility 2 | . . . . . . 2 . . Weapon 3 | . . . . . . 3 . . Parts Attached 69 | 7 2 1 11 4 1 32 4 7 Power 8 | 1 . . . . . 7 . . Engine 6 | 1 . . . . . 5 . . Core 1 | . . . . . . 1 . . Reactor 1 | . . . . . . 1 . . Propulsion 23 | 4 . . 3 1 . 11 2 2 Treads 5 | 2 . . . . . 2 . 1 Leg 8 | . . . . . . 8 . . Wheel 4 | 2 . . 2 . . . . . Hover . | . . . . . . . . . Flight 6 | . . . 1 1 . 1 2 1 Utility 12 | . 1 1 1 3 1 3 1 1 Device 5 | . . 1 . 2 . 1 1 . Storage 1 | . . . . . . 1 . . Processor 2 | . . . . . 1 . . 1 Hackware 2 | . . . . 1 . 1 . . Protection 2 | . 1 . 1 . . . . . Artifact . | . . . . . . . . . Weapon 26 | 2 1 . 7 . . 11 1 4 Energy Gun 1 | . . . . . . . . 1 Energy Cannon 2 | . . . . . . 2 . . Ballistic Gun 17 | 2 . . 5 . . 9 . 1 Ballistic Cannon 2 | . . . . . . . 1 1 Launcher 2 | . 1 . 1 . . . . . Special Weapon 1 | . . . 1 . . . . . Impact Weapon . | . . . . . . . . . Slashing Weapon . | . . . . . . . . . Piercing Weapon . | . . . . . . . . . Special Melee Weapon 1 | . . . . . . . . 1 Unidentified Prototypes 4 | . . . . . . 2 . 2 Corrupted Parts 1 | . . . . 1 . . . . System Corruption 1 | . . . . 1 . . . . Parts Lost 39 | . . 3 7 . . 21 . 8 Power 4 | . . . 1 . . 3 . . Propulsion 14 | . . 1 2 . . 8 . 3 Utility 5 | . . . 1 . . 3 . 1 Weapon 16 | . . 2 3 . . 7 . 4 Highest Loss Streak 7 | . . 3 3 . . 6 . 7 To Critical Strikes . | . . . . . . . . . Average Backups 3 | . 1 1 1 1 1 4 5 4 Power . | . . 1 . . . . . . Propulsion . | . . . . . . . 1 . Utility . | . . . . . . . . . Weapon 1 | . . . . . . 2 2 1 Tool/Special . | . . . . . . . . . Unused Backups 5 | 1 . . 2 . . . 1 1 Power 2 | . . . 1 . . . 1 . Propulsion 1 | 1 . . . . . . . . Utility 1 | . . . 1 . . . . . Weapon 1 | . . . . . . . . 1 Tool/Special . | . . . . . . . . . Average Slot Usage (%) 64 | . 81 71 76 57 85 60 57 32 Engine 5 | . 14 14 13 . . 4 . . Leg 5 | . . . . . . 12 5 . Wheel 5 | . 28 15 19 . . . . . Flight 6 | . . . . 17 28 4 7 5 Device 4 | . . 10 7 8 14 1 4 6 Storage 3 | . . . . . . 5 6 4 Processor 3 | . . . . . 2 6 6 3 Hackware 2 | . . . . 1 11 3 . . Protection 3 | . 10 14 9 . . . . . Ballistic Gun 18 | . 20 14 17 28 28 18 17 3 Launcher 1 | . 7 2 4 . . . . . Peak Build Rating 77 | 5 6 7 17 20 24 66 71 77 Average Rating 31 | 3 5 6 13 13 20 47 58 38 On Entrance 19 | . 5 6 7 10 20 24 41 66 Avg Prop Armor Cover (%) 5 | . . . . . . 6 3 . Naked Turns . | . . . . . . . . . Heaviest Build 57 | 8 11 11 29 4 4 57 31 31 Greatest Support 65 | 40 32 32 36 9 9 65 31 31 Greatest Overweight (x) 7 | . . . 1 . . 7 1 6 Average Overweight (x) . | . . . . . . . . . Largest Inventory Capacity 10 | 5 5 5 5 5 5 10 10 10 Average Capacity 7 | 5 5 5 5 5 5 9 10 8 Most Carried 10 | 5 3 4 5 5 5 10 10 10 Average Carried 6 | . 1 1 4 5 5 8 9 7 Final Capacity 10 | 5 5 5 5 5 5 10 10 5 Final Carried 10 | . 2 4 5 5 5 9 10 . Class Distribution -------------------- 61% | Mutant 28% | Scavenger-Gunner 5% | Scavenger-Mutant Dominant Class ---------------- Mutant | -10/Materials Mutant | -10/Mines Mutant | -10/Subcaves Mutant | -8/Recycling Mutant | -8/Scraptown Scavenger-Gunner | -6/Factory Scavenger-Gunner | -6/Waste Mutant | -6/Factory Resources | -11 -10 -10 -10 -8 -8 -6 -6 -6 ----------- Run | Yrd Mat Min Sub Rec Scr Fac Was Fac Matter Collected 2379 | 278 37 80 325 . 120 1179 104 256 Remotely . | . . . . . . . . . Salvage Created 2573 | 62 199 43 172 . . 1538 . 559 Parts 123 | 2 21 4 19 . . 54 . 23 Haulers Intercepted 1 | . . . . . . 1 . . Recyclers Shooed 5 | . 1 . . . . 3 . 1 Parts Field Recycled . | . . . . . . . . . Retrieved Matter . | . . . . . . . . . Parts Self-Destructed 3 | . . . 3 . . . . . Prevented . | . . . . . . . . . Parts Restored . | . . . . . . . . . Kills | -11 -10 -10 -10 -8 -8 -6 -6 -6 ------- Run | Yrd Mat Min Sub Rec Scr Fac Was Fac Combat Hostiles Destroyed 41 | . 7 2 9 . . 18 . 5 Guns 24 | . 1 1 5 . . 16 . 1 Cannons 5 | . . . 1 . . . . 4 AOE 12 | . 6 1 3 . . 2 . . Classes Destroyed 13 | 1 4 . 1 . . 6 . 1 Worker 2 | . . . . . . 2 . . Builder 2 | . 1 . . . . 1 . . Hauler 1 | . . . . . . 1 . . Recycler 8 | 1 1 . . . . 3 . 3 Watcher 3 | . 2 . . . . . . 1 Swarmer 10 | . 6 . 4 . . . . . Grunt 16 | . 1 2 . . . 11 . 2 Brawler 1 | . . . . . . . . 1 Duelist 1 | . . . . . . 1 . . Sentry 2 | . . . . . . 1 . 1 Hunter 2 | . . . . . . 2 . . Programmer 4 | . . . . . . 3 . 1 Subdweller 5 | . . . 5 . . . . . Best Kill Streak 6 | 1 6 2 3 . . 3 . 5 Combat Bots Only 4 | . 4 2 3 . . 3 . 3 Max Kills in Single Turn 3 | 1 3 1 1 . . 2 . 2 Gunslinging . | . . . . . . . . . Exploded 3 | . 3 1 1 . . 2 . . Melee . | . . . . . . . . . Uniques/NPCs Destroyed . | . . . . . . . . . Combat | -11 -10 -10 -10 -8 -8 -6 -6 -6 -------- Run | Yrd Mat Min Sub Rec Scr Fac Was Fac Hostile Shots Fired 477 | . 23 10 67 . . 240 . 137 Missed 153 | . 11 3 19 . . 71 . 49 Hits 324 | . 12 7 48 . . 169 . 88 Melee 5 | . . . . . . . . 5 Projectile 319 | . 12 7 48 . . 169 . 83 Critical Strikes 12 | . . . 2 . . 5 . 5 Damage Taken 5041 | . 165 145 739 . . 2721 . 1271 Core 1040 | . 36 17 129 . . 362 . 496 Absorbed by Shields . | . . . . . . . . . Redirected to Shielding 13 | . 2 5 6 . . . . . Core Remaining (%) 63 | 100 . . . . 27 . . . Volleys Fired 201 | 2 20 6 44 1 . 100 2 26 Largest 5 | 2 2 2 2 2 . 5 2 3 Hottest 146 | 40 40 40 125 45 . 146 78 126 Shots Fired 436 | 4 34 8 70 2 . 268 4 46 Gun 355 | 4 28 5 54 2 . 247 2 13 Cannon 56 | . . . . . . 21 2 33 Launcher 18 | . 6 3 9 . . . . . Special 7 | . . . 7 . . . . . Kinetic 390 | 4 28 5 54 2 . 247 4 46 Thermal 28 | . . . 7 . . 21 . . Explosive 18 | . 6 3 9 . . . . . Electromagnetic . | . . . . . . . . . Robot Hit Streak 17 | 4 10 6 13 3 . 17 . 3 Robot Miss Streak 6 | . 4 1 6 . . 6 . 3 Penetration Max 1 | . . . . . . 1 . . Secondary Targets 6 | . . . . . . 6 . . Max Gunslinging Chain 1 | . . . . . . 1 . . Shots Hit Robots 270 | 4 15 7 44 2 . 178 . 20 Core Hits 120 | 2 16 5 17 1 . 63 . 16 Critical Kills 7 | . . . . . . . . 7 Critical Parts Destroyed 5 | . 1 . . . . 1 . 3 Critical Strikes 12 | . 1 . . . . 1 . 10 Destroy 12 | . 1 . . . . 1 . 10 Melee Attacks . | . . . . . . . . . Impact . | . . . . . . . . . Slashing . | . . . . . . . . . Piercing . | . . . . . . . . . Sneak Attacks . | . . . . . . . . . Combat Hostiles . | . . . . . . . . . Follow-up Attacks . | . . . . . . . . . Damage Inflicted 6620 | 45 581 201 1015 24 . 4118 . 636 Guns 4402 | 45 159 50 478 24 . 3393 . 253 Cannons 847 | . . . . . . 474 . 373 Explosions 1278 | . 422 151 492 . . 213 . . Melee . | . . . . . . . . . Ramming 48 | . . . . . . 38 . 10 Kinetic 4775 | 45 159 50 478 24 . 3393 . 626 Thermal 732 | . . . 45 . . 687 . . Explosive 1065 | . 422 151 492 . . . . . Electromagnetic . | . . . . . . . . . Impact . | . . . . . . . . . Slashing . | . . . . . . . . . Piercing . | . . . . . . . . . Highest Corruption 13 | . . . . 2 . 1 1 13 Average Corruption 1 | . . . . 1 . 1 1 7 Corruption Purged . | . . . . . . . . . Corruption Blocked . | . . . . . . . . . Effects 16 | . . . . 1 . 6 1 8 Message Errors 3 | . . . . . . 3 . . Matter Fused 8 | . . . . 1 . 1 1 5 Energy Discharges 1 | . . . . . . 1 . . Parts Fused 1 | . . . . . . . . 1 Data Loss (minor) 1 | . . . . . . 1 . . Misdirections 2 | . . . . . . . . 2 Overload Shots . | . . . . . . . . . Overflow Damage 122 | . . 15 . . . 105 . 2 Projectiles 2 | . . . . . . . . 2 Explosions 120 | . . 15 . . . 105 . . Melee . | . . . . . . . . . Knockbacks 3 | . . . . . . . . 3 Impact . | . . . . . . . . . Kinetic 3 | . . . . . . . . 3 Secondary . | . . . . . . . . . Self-Inflicted Damage 307 | . 62 50 59 . . 131 . 5 Shots 10 | . 3 2 3 . . 2 . . Rammed 2 | . . . . . . . . 2 Targets Rammed 14 | . . . . . . 12 . 2 Kicked 12 | . . . . . . 12 . . Crushed . | . . . . . . . . . Highest Temperature 505 | . 6 10 505 . . 314 4 20 Average Temperature 86 | . 6 6 135 . . 85 2 7 Received Heat Transfer 1833 | . 12 54 690 . . 804 . 273 Effects 1 | . . . 1 . . . . . Shutdowns 1 | . . . 1 . . . . . Siege Activations . | . . . . . . . . . Martial Activations . | . . . . . . . . . Shielding Activations . | . . . . . . . . . Robots Disrupted . | . . . . . . . . . Combat Hostiles . | . . . . . . . . . Robots Corrupted . | . . . . . . . . . Combat Hostiles . | . . . . . . . . . Parts Fried . | . . . . . . . . . Impact Corruptions . | . . . . . . . . . Robots Melted . | . . . . . . . . . Combat Hostiles . | . . . . . . . . . Parts Melted . | . . . . . . . . . Heat Transferred 864 | . . . 320 . . 544 . . Parts Sabotaged . | . . . . . . . . . Parts Stolen . | . . . . . . . . . Parts Stripped . | . . . . . . . . . Power Chain Reactions . | . . . . . . . . . Alert | -11 -10 -10 -10 -8 -8 -6 -6 -6 ------- Run | Yrd Mat Min Sub Rec Scr Fac Was Fac Maximum Alert Level . | . . . . . . . . . Low Security (%) 100 | 100 100 100 . 100 . 100 100 100 Level 1 . | . . . . . . . . . Level 2 . | . . . . . . . . . Level 3 . | . . . . . . . . . Level 4 . | . . . . . . . . . Level 5 . | . . . . . . . . . High Security . | . . . . . . . . . Max Security . | . . . . . . . . . Peak Influence 172 | 5 172 91 . 142 . 149 43 121 Initial 63 | . . 63 . 35 . . 43 . Average 52 | 1 102 56 . 85 . 48 9 52 Influence Increases 1514 | 5 252 68 125 217 . 636 1 210 Destroy 0b10 Robot/C 720 | . 140 40 80 . . 360 . 100 Destroy 0b10 Robot/NC 80 | 5 20 . . . . 35 . 20 Destroy Leader 168 | . 34 10 . . . 102 . 22 Successful Hack 59 | . . . . 37 . 22 . . Select Force Hacks 180 | . . . . 180 . . . . Disable Machine 135 | . 15 . . . . 75 . 45 Destroy Structure 112 | . 43 18 . . . 42 1 8 Lose Combat Pursuer 60 | . . . 45 . . . . 15 Influence Decreases 1483 | 5 90 209 72 179 112 513 124 179 Entered New Map 342 | . . 99 12 39 112 . 80 . Time Decay 829 | 5 90 80 33 140 . 343 44 94 Lost Part 292 | . . 30 27 . . 170 . 65 Lost Ally 20 | . . . . . . . . 20 Squads Dispatched 13 | . 1 . . . . 9 . 3 Investigation . | . . . . . . . . . Extermination 3 | . . . . . . 3 . . Reinforcement 7 | . 1 . . . . 5 . 1 Assault . | . . . . . . . . . Garrison 3 | . . . . . . 1 . 2 Intercept . | . . . . . . . . . Searches Triggered . | . . . . . . . . . Construction Impeded 1 | . . . . . . 1 . . Haulers Reinforced 1 | . . . . . . 1 . . Active Scanning Responses . | . . . . . . . . . Cargo Convoy Interrupts . | . . . . . . . . . Stealth | -11 -10 -10 -10 -8 -8 -6 -6 -6 --------- Run | Yrd Mat Min Sub Rec Scr Fac Was Fac Distress Signals 2 | . 1 . . . . . . 1 Communications Jammed . | . . . . . . . . . Distress Signals . | . . . . . . . . . Times Spotted 65 | . 10 2 12 . . 21 . 20 Peak Tracking Total 10 | . 4 2 4 . . 4 . 10 Tactical Retreats 3 | . . . 2 . . . . 1 Traps | -11 -10 -10 -10 -8 -8 -6 -6 -6 ------- Run | Yrd Mat Min Sub Rec Scr Fac Was Fac Traps Triggered 3 | . . . . . . 1 . 2 Indirectly . | . . . . . . . . . Trap Hack Attempts . | . . . . . . . . . Triggered . | . . . . . . . . . Disarmed . | . . . . . . . . . Reprogrammed . | . . . . . . . . . Reused . | . . . . . . . . . Traps Extracted . | . . . . . . . . . Installed . | . . . . . . . . . Triggered . | . . . . . . . . . Machines | -11 -10 -10 -10 -8 -8 -6 -6 -6 ---------- Run | Yrd Mat Min Sub Rec Scr Fac Was Fac Machines Disabled 9 | . 1 . . . . 5 . 3 Max in Single Turn 4 | . 1 . . . . 4 . 1 Machines Repaired . | . . . . . . . . . Machines Dismantled . | . . . . . . . . . Machines Sabotaged . | . . . . . . . . . Overloaded Fab Kills . | . . . . . . . . . Hacking | -11 -10 -10 -10 -8 -8 -6 -6 -6 --------- Run | Yrd Mat Min Sub Rec Scr Fac Was Fac Machines Accessed 21 | . . . 1 12 2 5 . 1 Terminals 8 | . . . . 5 . 3 . . Fabricators 3 | . . . . . . 2 . 1 Repair Stations . | . . . . . . . . . Recycling Units 7 | . . . . 7 . . . . Scanalyzers . | . . . . . . . . . Garrison Access . | . . . . . . . . . Total Hacks 56 | . . . 1 37 4 10 . 4 Successful 28 | . . . 1 19 4 4 . . Failed 28 | . . . . 18 . 6 . 4 Catastrophic 4 | . . . . 4 . . . . Database Lockouts . | . . . . . . . . . Manual 6 | . . . . 6 . . . . Terminals 27 | . . . . 23 . 4 . . Fabricators 10 | . . . . . . 6 . 4 Repair Stations . | . . . . . . . . . Recycling Units 14 | . . . . 14 . . . . Scanalyzers . | . . . . . . . . . Garrison Access . | . . . . . . . . . Terminal Hacks 16 | . . . 1 9 4 2 . . Record 6 | . . . . 1 3 2 . . Part Schematic 2 | . . . . 2 . . . . Robot Schematic 1 | . . . . 1 . . . . Prototype ID Bank 2 | . . . . 2 . . . . Alert Level 2 | . . . . 2 . . . . Hauler Manifests 1 | . . . . 1 . . . . Proto ID Catalog 2 | . . . 1 . 1 . . . Fabricator Hacks 2 | . . . . . . 2 . . Network Status 1 | . . . . . . 1 . . Build 1 | . . . . . . 1 . . Repair Station Hacks . | . . . . . . . . . Recycling Unit Hacks 4 | . . . . 4 . . . . Process 1 | . . . . 1 . . . . Retrieve Components 3 | . . . . 3 . . . . Scanalyzer . | . . . . . . . . . Garrison Access Hacks . | . . . . . . . . . Unauthorized Hacks 6 | . . . . 6 . . . . Terminals . | . . . . . . . . . Fabricators . | . . . . . . . . . Repair Stations . | . . . . . . . . . Recycling Units 6 | . . . . 6 . . . . Tunnel 6 | . . . . 6 . . . . Scanalyzers . | . . . . . . . . . Garrison Access . | . . . . . . . . . Data Cores Recovered . | . . . . . . . . . Used . | . . . . . . . . . Hacking Detections 13 | . . . . 8 . 4 . 1 Full Trace Events 5 | . . . . 5 . . . . Feedback Events 1 | . . . . 1 . . . . Corruption 1 | . . . . 1 . . . . Feedback Blocked . | . . . . . . . . . Robot Schematics Acquired 1 | . . . . 1 . . . . Robots Built . | . . . . . . . . . Authchips . | . . . . . . . . . Time . | . . . . . . . . . Total Robot Build Rating . | . . . . . . . . . Part Schematics Acquired 2 | . . . . 2 . . . . Parts Built 2 | . . . . . . 2 . . Authchips . | . . . . . . . . . Time 64 | . . . . . . 64 . . Total Part Build Rating 16 | . . . . . . 16 . . Part Studies Acquired . | . . . . . . . . . Parts Repaired . | . . . . . . . . . Time . | . . . . . . . . . Parts Recycled . | . . . . . . . . . Recycled Matter 1 | . . . . 1 . . . . Retrieved Matter . | . . . . . . . . . Retrieved Components 5 | . . . . 5 . . . . Parts Scanalyzed . | . . . . . . . . . Part Schematics Acquired . | . . . . . . . . . Parts Damaged . | . . . . . . . . . Bothacking | -11 -10 -10 -10 -8 -8 -6 -6 -6 ------------ Run | Yrd Mat Min Sub Rec Scr Fac Was Fac Used RIF Installer . | . . . . . . . . . Robots Hacked . | . . . . . . . . . Non-combat . | . . . . . . . . . Combat . | . . . . . . . . . Robot Hacks Applied . | . . . . . . . . . Relay Couplers Released . | . . . . . . . . . Fabnet Peak Effective % . | . . . . . . . . . Robots Rewired . | . . . . . . . . . Allies Hacked . | . . . . . . . . . Hacks Repelled . | . . . . . . . . . Allies | -11 -10 -10 -10 -8 -8 -6 -6 -6 -------- Run | Yrd Mat Min Sub Rec Scr Fac Was Fac Total Allies . | . . . . . . . . . Largest Group . | . . . . . . . . . Highest-Rated Group . | . . . . . . . . . Highest-Rated Ally . | . . . . . . . . . Initial UFD Resources 22 | . . . . . . 22 22 22 Total Orders . | . . . . . . . . . Ally Attacks . | . . . . . . . . . Total Damage . | . . . . . . . . . Kills . | . . . . . . . . . Allies Corrupted . | . . . . . . . . . Allies Melted . | . . . . . . . . . Borg Created 1 | . . . . . . . . 1 Largest Collective 1 | . . . . . . . . 1 Intel | -11 -10 -10 -10 -8 -8 -6 -6 -6 ------- Run | Yrd Mat Min Sub Rec Scr Fac Was Fac Active Infowar (turns) 68 | . . . . . . . . 68 Optics 68 | . . . . . . . . 68 Robot Analysis Total . | . . . . . . . . . Derelict Logs Recovered 2 | . . 2 . . . . . . Drone Launches . | . . . . . . . . . Drone Recoveries . | . . . . . . . . . Exploration | -11 -10 -10 -10 -8 -8 -6 -6 -6 ------------- Run | Yrd Mat Min Sub Rec Scr Fac Was Fac Turns Passed 3479 | 78 214 172 581 289 253 1413 235 244 Spaces Moved 3396 | 57 140 134 350 710 707 663 382 253 Core 127 | 22 . . 13 . . 3 . 89 Treads 77 | 15 . . . . . 58 . 4 Legs 430 | . . . . . . 354 76 . Wheels 618 | 20 140 134 324 . . . . . Hover . | . . . . . . . . . Flight 2144 | . . . 13 710 707 248 306 160 Fastest Speed 32 | 50 100 100 40 34 34 32 39 39 Average Speed 69 | 96 100 100 98 38 34 123 55 54 Slowest Speed 400 | 160 100 100 115 40 34 400 190 350 Overloaded Moves . | . . . . . . . . . Propulsion Burnouts . | . . . . . . . . . Robots Hopped 8 | . . . . 4 . . 1 3 Potential Cave-ins . | . . . . . . . . . Cave-ins Triggered . | . . . . . . . . . Exploration Rate (%) 40 | 4 39 40 22 84 46 20 95 11 Regions Visited 8 Branch Regions 4 Pre-discovered Areas 6 | . . . . 6 . . . . Known Exits Taken . | . . . . . . . . . Unknown Exits Taken 6 | 1 1 1 1 1 1 . . . Scrap Searched 11 | . . 1 7 . 3 . . . Spaces Dug 14 | . 13 . . . . 1 . . Terrain Destroyed 165 | . 47 25 43 . . 39 1 10 Melee . | . . . . . . . . . Projectile 17 | . . . . . . 6 1 10 AOE 148 | . 47 25 43 . . 33 . . Terrain Rammed . | . . . . . . . . . Walls Destroyed . | . . . . . . . . . Machines Disabled . | . . . . . . . . . Actions | -11 -10 -10 -10 -8 -8 -6 -6 -6 --------- Run | Yrd Mat Min Sub Rec Scr Fac Was Fac Total 4163 | 77 181 164 514 721 718 1074 401 313 Wait 398 | . 15 19 94 10 10 232 . 18 Move 3374 | 56 139 133 349 701 706 663 379 248 Hop 7 | . . . . 4 . . 1 2 Pick Up 45 | 8 3 4 1 . . 23 4 2 Fast Attach 34 | 1 . . 9 4 1 12 5 2 Attach 37 | 6 1 2 2 . . 18 2 6 Detach 1 | . . . . . . . . 1 Swap 11 | . 3 . 2 . . 6 . . Drop 37 | 4 . . 10 1 1 8 8 5 Fire 201 | 2 20 6 44 1 . 100 2 26 Melee . | . . . . . . . . . Ram 2 | . . . . . . . . 2 Kick 12 | . . . . . . 12 . . Crush . | . . . . . . . . . Escape Stasis . | . . . . . . . . . Rewire . | . . . . . . . . . Trap . | . . . . . . . . . Miscellaneous 4 | . . . 3 . . . . 1 Route ------- -11/Scrapyard -10/Materials (discovered 3 exits: [*Mat x2] / [*Min]) -10/Mines (discovered 2 exits: [*Mat] / *Sub) -10/Subcaves (discovered 2 exits: [*Mat] / *Rec) -8/Recycling (discovered 2 exits: *Fac / *Scr) -8/Scraptown -6/Factory -6/Waste -6/Factory History --------- Turn | Location | Event 6 | -11/Scrapyard | Discovered new exit (range 16) 79 | -11/Scrapyard | Entered Materials 177 | -10/Materials | Discovered new exit (range 11) 243 | -10/Materials | Discovered new exit (range 16) 268 | -10/Materials | Discovered new exit (range 15) 293 | -10/Materials | Entered Mines 304 | -10/Mines | Build established: Mutant 306 | -10/Mines | Discovered new exit (range 6) 308 | -10/Mines | Learned location of 1 exit from Materials 353 | -10/Mines | Lost 3 parts (1n2w) 396 | -10/Mines | Received a Rocket Launcher from a helpful Derelict 418 | -10/Mines | Learned Materials emergency access door positions 448 | -10/Mines | Discovered new exit (range 5) 465 | -10/Mines | Entered Subcaves 466 | -10/Subcaves | Approached by a straggling Scientist 513 | -10/Subcaves | Visited 4L-MR0's lab 521 | -10/Subcaves | Found Prototype Special Melee Weapon 699 | -10/Subcaves | Disturbed a concealed Subdweller 700 | -10/Subcaves | Disturbed a concealed Subdweller 714 | -10/Subcaves | Ambushed by Subdweller buried in earth 732 | -10/Subcaves | Core integrity fell below 50% 772 | -10/Subcaves | Lost 3 parts (1n2w) 872 | -10/Subcaves | Discovered new exit (range 8) 1012 | -10/Subcaves | Discovered new exit (range 14) 1034 | -10/Subcaves | Lost 3 parts (1p1n1w) 1046 | -10/Subcaves | Entered Recycling 1142 | -8/Recycling | Discovered new exit (range 9) 1327 | -8/Recycling | Scanned before Scraplab entrance 1332 | -8/Recycling | Entered Scraplab 1335 | -8/Recycling | Discovered new exit (range 3) 1335 | -8/Recycling | Entered Scraptown 1335 | -8/Scraptown | System corruption cleaned by C-Scrubber 1347 | -8/Scraptown | Heard Great Nut preacher, LISTEN AND RECITE! 1373 | -8/Scraptown | Visited UFD Registry 1373 | -8/Scraptown | Registered with UFD as "Megarider" 1386 | -8/Scraptown | Visited Science Guys 1398 | -8/Scraptown | Visited DA-N13 Charitable Foundation 1399 | -8/Scraptown | Found DCF Scrap (27 items) 1407 | -8/Scraptown | Visited Abandonware Association 1412 | -8/Scraptown | Visited Research Penetration Think Tank 1424 | -8/Scraptown | Visited Infowarlord's Domain 1430 | -8/Scraptown | Visited LU-1G1's Boring Crew 1439 | -8/Scraptown | Visited Scrap Suit Storage 1444 | -8/Scraptown | Visited Curators Association 1463 | -8/Scraptown | Visited Observation Area 1493 | -8/Scraptown | Learned abandonware demo "REPAIR.EXE" 1545 | -8/Scraptown | Found Exp. Terrain Scan Processor 1566 | -8/Scraptown | Met Optimus 1566 | -8/Scraptown | Accepted into 0bPrime 1586 | -8/Scraptown | Discovered new exit (range 5) 1588 | -8/Scraptown | Entered Factory 1588 | -6/Factory | Evolved 8 slots: Power x1, Propulsion x2, Utility x2, Weapon x3 1702 | -6/Factory | Fabricated Nova Cannon (x2) 1899 | -6/Factory | Lost 4 parts (1p2n1u) 2129 | -6/Factory | Lost 4 parts (2p1u1w) 2259 | -6/Factory | Build established: Scavenger-Gunner 2461 | -6/Factory | Lost 5 parts (1n4w) 2547 | -6/Factory | Lost 6 parts (4n1u1w) 2718 | -6/Factory | Garrison activated, responded to threat 2992 | -6/Factory | Spotted B-75 Beast 3001 | -6/Factory | Sucked down chute 3001 | -6/Factory | Entered Waste 3001 | -6/Waste | The area was eerily silent 3132 | -6/Waste | Discovered new exit (range 15) 3138 | -6/Waste | Found Spectral Analyzer 3236 | -6/Waste | Entered Factory 3263 | -6/Factory | Spotted B-75 Beast 3349 | -6/Factory | Core integrity fell below 50% 3363 | -6/Factory | Garrison activated, responded to threat 3385 | -6/Factory | System corruption reached 10% 3417 | -6/Factory | Core integrity fell below 20% 3423 | -6/Factory | Lost 7 parts (3n1u3w) 3470 | -6/Factory | Identified 1B-0RG's Assimilator 3475 | -6/Factory | Assimilating Conveyor 5a into Collective. 3480 | -6/Factory | Destroyed by P-60 Hacker with Shock Rifle Last Messages --------------- Slammed into A-15 Conveyor. Destabilizing: System corrupted (+1). K-01 Serf cleans the Nuclear Reactor. W-25 Informer sends out distress signal. Door malfunctions. Identified 1B-0RG's Assimilator. K-01 Serf cleans the Megafabricator. R-10 Processor inserts Visual Processing Unit into recycling unit. 1B-0RG's Assimilator injects Conveyor 5a to begin assimilation process, ETC: 20. K-01 Serf cleans the Nuclear Reactor. R-10 Processor inserts Imp. Hover Unit into recycling unit. U-05 Engineer repairs door. R-10 Processor inserts Imp. Hover Unit into recycling unit. Borg Conveyor 5a destroyed. 1B-0RG's Assimilator destroyed by loss of Borg Conveyor 5a. Map ----- +----------------------------------------------------+ | ?????????????????????????????????????????????????? | | ?????????????????????????????????????????????????? | | ???????????????????????? ????????????????????????? | | ???????????????????????? ????????????????????????? | | ????????????????????????/????????????????????????? | | ???????????????????????? ???? ??????????????????? | | ???????????????????????? ???? ??????????????????? | | ?????????????????????### #### ??????????????????? | | ????????????????????? ?????????????????? | | ?????????????????????R ?????????????????? | | ?????????????????????" g ?????????????????? | | ????????????????????"" ??????????????????? | | ??????????????"""""""" gg ??????????????????? | | ???????????" """"""""" ""?????????????????? | | ???????????? """"""""" ""??#??????????????? | | ?????????????""""""""" Y" #??????????????? | | ?????????????? R"" #??????????????? | | ??????????????? "" +??????????????? | | ????????????????? #??????????????? | | ?????????????????? #??????????????? | | ??????????????????? ^ ! #??????????????? | | ???????????????????? #??????????????? | | ????????????????????? [ """ """ #??????????????? | | ??????????????????????# """ """ #??????????????? | | ??????????????????????# """ """ #??????????????? | | ??????????????????????#!%@ #????????? ????? | | ??????????????????????#!^""" """ #????? ???? | | ??????????????????????#gg""" """ #### !! ???? | | ??????????????????????#pg""" """ !! ??? | | ??????????????????????# uR ! ??? | | ??????????????#######?# k ""???? | | ??????????????# """"" # ??? | | ??????????????# """"" # ??? | | ??????????????# """ / u #############""????? | | ??????????????# # #######??????????????????? | | ??????????????# = # #????????????????????????? | | ??????????????#######?# #????????????????????????? | | ??????????????????????# #????????################# | | ???????????????#??????# #???###### | | ???????????????# ????# #???# | | ???????????????# ??# #???# | | ???????????????# # ##### | | ???????????????# " "" + | | ???????????????# "R"" # = | | ???????????????# """??# =%! | | ???????????????###????#+## ############## | | ????????????????????? # #????????????? | | ??????????????????? [ # #????????????? | | ?????????????????"" # #????????????? | | ????????????????#""" # #????????????? | +----------------------------------------------------+ Best States ------------- Heat Dissipation 51 Energy Generation 31 Energy Capacity 340 Matter Stores 300 Matter Capacity 300 Sight Range 24 Terrain Scan Density 1010 Armor Coverage 800 Power Shielding 33 Evasion (%) 71 Recoil Reduction 4 Offensive Hacking 12 Authchip Count 1 Item Schematics ----------------- Adv. Targeting Computer | -8/Recycling | Hacked Mic. Nuclear Core | -8/Recycling | Hacked Robot Schematics ------------------ C-17 Slicer | -8/Recycling | Hacked Fabricated ------------ Nova Cannon | x2 | -6/Factory | Preloaded Repaired ---------- Nothing Studied --------- None Alien Tech Used ----------------- None Achievements -------------- None Challenges ------------ None Game ------ Seed SignalDeepShovel Manual? 0 Play Time 00:38:53 Cumulative 271.2 hours Start 2026.04.19 @ 15:31:18 End 2026.04.19 @ 16:12:32 Sessions 1 Manual Loads 0 Difficulty Rogue Special Mode None Game No. 716 Rogue 714 Adventurer 2 Explorer 0 Win Type - Total 0 Types 0/0/0/0/0/0/0/0/0/0 Lore% 68 Gallery% 64 Achievement% 44 Wizard Run 0 Options --------- Layout 2 ASCII 0 Keyboard 0 Movement Mouse Keybinds 0 Fullscreen 1 Font 24/Smallcaps Map View 50x44 Zoom Use 0% Tactical HUD 0 Map Filters NONE Filters NONE Steam 1 RUN: 5e1b25b6-ecbd-4ed7-ba3b-6ffc2f656695